Cogmind - Beta 15 @@@ ROGUE MODE // 2025.05.24 @ 21:04:37 Player: celerysam Result: Destroyed by Piercing Trap Performance ------------- Evolutions (0) 0 Regions Visited (2) 400 Robots Destroyed (23) 115 Value Destroyed (525) 525 Prototype IDs (1) 20 Alien Tech Used (0) 0 Bonus (0) 0 TOTAL SCORE: 1060 Bonus ------- None Cogmind --------- Core Integrity 0/250 Matter 290/300 Energy 278/280 System Corruption 0% Temperature Cool (0) Movement Rolling (95) Location -10/Subcaves Parts ------- > --- POWER (1) -------- Cooled Ion Engine > --- PROPULSION (2) --- Wheel Subdweller Monowheel > --- UTILITY (2) ------ Small Storage Unit Structural Scanner > --- WEAPON (2) ------- Riot Gun Subdweller Shrapnel Launcher > --- INVENTORY (8) ---- Subdweller Power Source Improved Treads Improved Treads Spiked Treads Compact Wheel Improved Heat Sink Grenade Launcher Peak State ------------ > --- POWER ------------ Cooled Ion Engine > --- PROPULSION ------- Wheel Subdweller Monowheel > --- UTILITY ---------- Small Storage Unit Structural Scanner > --- WEAPON ----------- Riot Gun Subdweller Shrapnel Launcher > --- INVENTORY -------- Subdweller Power Source Improved Treads Improved Treads Spiked Treads Compact Wheel Improved Heat Sink Grenade Launcher [Rating: 14] Favorites ----------- Power Light Ion Engine Engine Light Ion Engine Power Core Light Nuclear Core Propulsion Aluminum Leg Leg Aluminum Leg Wheel Wheel Utility Small Storage Unit Device Structural Scanner Storage Small Storage Unit Protection Light Armor Plating Weapon Light Cannon Energy Gun Small Laser Ballistic Gun Subdweller Machine Gun Ballistic Cannon Light Cannon Launcher Grenade Launcher Build | -11 -10 -10 ------- Run | Yrd Mat Sub Slots Evolved . | . . . Power . | . . . Propulsion . | . . . Utility . | . . . Weapon . | . . . Parts Attached 28 | 6 16 6 Power 6 | 1 5 . Engine 5 | 1 4 . Core 1 | . 1 . Reactor . | . . . Propulsion 8 | 2 3 3 Treads . | . . . Leg 2 | 2 . . Wheel 6 | . 3 3 Hover . | . . . Flight . | . . . Utility 5 | 1 4 . Device 2 | . 2 . Storage 1 | 1 . . Processor . | . . . Hackware . | . . . Protection 2 | . 2 . Artifact . | . . . Weapon 9 | 2 4 3 Energy Gun 4 | 1 2 1 Energy Cannon . | . . . Ballistic Gun 2 | 1 . 1 Ballistic Cannon 1 | . 1 . Launcher 2 | . 1 1 Special Weapon . | . . . Impact Weapon . | . . . Slashing Weapon . | . . . Piercing Weapon . | . . . Special Melee Weapon . | . . . Unidentified Prototypes 1 | . 1 . Parts Lost 10 | . 4 6 Power 2 | . 2 . Propulsion 4 | . 1 3 Utility 1 | . 1 . Weapon 3 | . . 3 Highest Loss Streak 4 | . 2 4 To Critical Strikes . | . . . Average Backups 7 | 4 7 7 Power . | . . . Propulsion 4 | 3 4 4 Utility . | . . 1 Weapon 1 | . 1 1 Tool/Special . | . . . Unused Backups 9 | . 4 5 Power 3 | . 2 1 Propulsion 6 | . 2 4 Utility . | . . . Weapon . | . . . Tool/Special . | . . . Average Slot Usage (%) 97 | . 98 93 Engine 12 | . 11 14 Core 1 | . 2 . Leg 18 | . 24 . Wheel 9 | . 3 25 Device 11 | . 10 14 Storage 14 | . 14 14 Protection 1 | . 2 . Energy Gun 13 | . 14 13 Ballistic Gun 3 | . 1 8 Ballistic Cannon 9 | . 11 2 Peak Build Rating 14 | 6 11 14 Average Rating 9 | 4 8 12 On Entrance 5 | . 6 11 Naked Turns . | . . . Heaviest Build 25 | 10 20 25 Greatest Support 30 | 20 20 30 Greatest Overweight (x) 1 | . 1 1 Average Overweight (x) . | . . . Largest Inventory Capacity 8 | 8 8 8 Average Capacity 7 | 6 8 8 Most Carried 8 | 6 8 8 Average Carried 7 | 4 7 7 Final Capacity 8 | 8 8 8 Final Carried 7 | 6 6 7 Class Distribution -------------------- 100% | Mutant Dominant Class ---------------- Mutant | -10/Materials Mutant | -10/Subcaves Resources | -11 -10 -10 ----------- Run | Yrd Mat Sub Matter Collected 696 | 230 303 163 Remotely . | . . . Salvage Created 578 | . 436 142 Parts 34 | . 27 7 Haulers Intercepted 1 | . 1 . Recyclers Shooed . | . . . Parts Field Recycled . | . . . Retrieved Matter . | . . . Parts Self-Destructed 6 | . . 6 Prevented . | . . . Kills | -11 -10 -10 ------- Run | Yrd Mat Sub Combat Hostiles Destroyed 19 | . 15 4 Guns 14 | . 10 4 Cannons 5 | . 5 . Classes Destroyed 6 | . 5 1 Worker 1 | . 1 . Hauler 1 | . 1 . Watcher 2 | . 2 . Swarmer 9 | . 9 . Grunt 6 | . 6 . Subdweller 4 | . . 4 Best Kill Streak 7 | . 7 2 Combat Bots Only 6 | . 6 2 Max Kills in Single Turn 1 | . 1 1 Gunslinging . | . . . Exploded . | . . . Melee . | . . . Uniques/NPCs Destroyed . | . . . Combat | -11 -10 -10 -------- Run | Yrd Mat Sub Hostile Shots Fired 117 | . 88 29 Missed 28 | . 20 8 Hits 89 | . 68 21 Projectile 89 | . 68 21 Critical Strikes 2 | . 1 1 Damage Taken 1294 | . 736 558 Core 257 | . 124 133 Absorbed by Shields . | . . . Core Remaining (%) 100 | 100 . . Volleys Fired 86 | . 59 27 Largest 2 | . 2 2 Hottest 86 | . 86 86 Shots Fired 153 | . 113 40 Gun 103 | . 71 32 Cannon 49 | . 41 8 Launcher 1 | . 1 . Special . | . . . Kinetic 80 | . 58 22 Thermal 71 | . 54 17 Explosive 1 | . 1 . Electromagnetic 1 | . . 1 Robot Hit Streak 10 | . 10 7 Robot Miss Streak 4 | . 4 3 Penetration Max . | . . . Secondary Targets 1 | . 1 . Max Gunslinging Chain 1 | . 1 . Shots Hit Robots 83 | . 59 24 Core Hits 35 | . 27 8 Critical Kills . | . . . Critical Parts Destroyed . | . . . Critical Strikes 2 | . 1 1 Destroy 1 | . . 1 Blast 1 | . 1 . Melee Attacks . | . . . Impact . | . . . Slashing . | . . . Piercing . | . . . Sneak Attacks . | . . . Combat Hostiles . | . . . Follow-up Attacks . | . . . Damage Inflicted 1206 | . 794 412 Guns 792 | . 415 377 Cannons 414 | . 379 35 Explosions . | . . . Melee . | . . . Ramming . | . . . Kinetic 749 | . 479 270 Thermal 446 | . 315 131 Explosive . | . . . Electromagnetic 11 | . . 11 Impact . | . . . Slashing . | . . . Piercing . | . . . Highest Corruption . | . . . Average Corruption . | . . . Corruption Purged . | . . . Corruption Blocked . | . . . Overload Shots . | . . . Overflow Damage 2 | . 2 . Projectiles . | . . . Explosions 2 | . 2 . Melee . | . . . Knockbacks 6 | . 6 . Impact . | . . . Kinetic 6 | . 6 . Secondary . | . . . Self-Inflicted Damage 82 | . 82 . Shots 2 | . 2 . Rammed . | . . . Targets Rammed . | . . . Kicked . | . . . Crushed . | . . . Highest Temperature 282 | . 282 . Average Temperature 78 | . 78 . Received Heat Transfer 285 | . 192 93 Effects 1 | . 1 . Energy Bleed 1 | . 1 . Siege Activations . | . . . Martial Activations . | . . . Shielding Activations . | . . . Robots Disrupted . | . . . Combat Hostiles . | . . . Robots Corrupted . | . . . Combat Hostiles . | . . . Parts Fried . | . . . Impact Corruptions . | . . . Robots Melted . | . . . Combat Hostiles . | . . . Parts Melted . | . . . Heat Transferred 1058 | . 725 333 Parts Sabotaged . | . . . Parts Stolen . | . . . Parts Stripped . | . . . Power Chain Reactions 1 | . 1 . Alert | -11 -10 -10 ------- Run | Yrd Mat Sub Maximum Alert Level . | . . . Low Security (%) 100 | 100 100 . Level 1 . | . . . Level 2 . | . . . Level 3 . | . . . Level 4 . | . . . Level 5 . | . . . High Security . | . . . Max Security . | . . . Peak Influence 130 | . 130 . Initial . | . . . Average 40 | . 43 . Influence Increases 444 | . 444 . Destroy 0b10 Robot/C 300 | . 300 . Destroy 0b10 Robot/NC 20 | . 20 . Destroy Leader 66 | . 66 . Disable Machine 15 | . 15 . Destroy Structure 13 | . 13 . Lose Combat Pursuer 30 | . 30 . Influence Decreases 444 | . 418 26 Entered New Map 14 | . . 14 Time Decay 388 | . 378 10 Lost Part 42 | . 40 2 Squads Dispatched 2 | . 2 . Investigation 2 | . 2 . Extermination . | . . . Reinforcement . | . . . Assault . | . . . Garrison . | . . . Intercept . | . . . Searches Triggered . | . . . Construction Impeded . | . . . Haulers Reinforced . | . . . Active Scanning Responses . | . . . Cargo Convoy Interrupts . | . . . Stealth | -11 -10 -10 --------- Run | Yrd Mat Sub Distress Signals 1 | . 1 . Communications Jammed . | . . . Distress Signals . | . . . Times Spotted 28 | . 24 4 Peak Tracking Total 5 | . 5 2 Tactical Retreats 2 | . 2 . Traps | -11 -10 -10 ------- Run | Yrd Mat Sub Traps Triggered 4 | . 2 2 Indirectly . | . . . Trap Hack Attempts . | . . . Triggered . | . . . Disarmed . | . . . Reprogrammed . | . . . Reused . | . . . Traps Extracted . | . . . Installed . | . . . Triggered . | . . . Machines | -11 -10 -10 ---------- Run | Yrd Mat Sub Machines Disabled 1 | . 1 . Max in Single Turn 1 | . 1 . Machines Repaired . | . . . Machines Dismantled . | . . . Machines Sabotaged . | . . . Overloaded Fab Kills . | . . . Hacking | -11 -10 -10 --------- Run | Yrd Mat Sub Machines Accessed . | . . . Terminals . | . . . Fabricators . | . . . Repair Stations . | . . . Recycling Units . | . . . Scanalyzers . | . . . Garrison Access . | . . . Total Hacks . | . . . Successful . | . . . Failed . | . . . Catastrophic . | . . . Database Lockouts . | . . . Manual . | . . . Terminals . | . . . Fabricators . | . . . Repair Stations . | . . . Recycling Units . | . . . Scanalyzers . | . . . Garrison Access . | . . . Terminal Hacks . | . . . Fabricator Hacks . | . . . Repair Station Hacks . | . . . Recycling Unit Hacks . | . . . Scanalyzer . | . . . Garrison Access Hacks . | . . . Unauthorized Hacks . | . . . Terminals . | . . . Fabricators . | . . . Repair Stations . | . . . Recycling Units . | . . . Scanalyzers . | . . . Garrison Access . | . . . Data Cores Recovered . | . . . Used . | . . . Hacking Detections . | . . . Full Trace Events . | . . . Feedback Events . | . . . Feedback Blocked . | . . . Robot Schematics Acquired . | . . . Robots Built . | . . . Authchips . | . . . Time . | . . . Total Robot Build Rating . | . . . Part Schematics Acquired . | . . . Parts Built . | . . . Authchips . | . . . Time . | . . . Total Part Build Rating . | . . . Parts Repaired . | . . . Time . | . . . Parts Recycled . | . . . Recycled Matter . | . . . Retrieved Matter . | . . . Retrieved Components . | . . . Parts Scanalyzed . | . . . Part Schematics Acquired . | . . . Parts Damaged . | . . . Bothacking | -11 -10 -10 ------------ Run | Yrd Mat Sub Used RIF Installer . | . . . Robots Hacked . | . . . Non-combat . | . . . Combat . | . . . Robot Hacks Applied . | . . . Relay Couplers Released . | . . . Fabnet Peak Effective % . | . . . Robots Rewired . | . . . Allies Hacked . | . . . Hacks Repelled . | . . . Allies | -11 -10 -10 -------- Run | Yrd Mat Sub Total Allies . | . . . Largest Group . | . . . Highest-Rated Group . | . . . Highest-Rated Ally . | . . . Total Orders . | . . . Ally Attacks . | . . . Total Damage . | . . . Kills . | . . . Allies Corrupted . | . . . Allies Melted . | . . . Intel | -11 -10 -10 ------- Run | Yrd Mat Sub Active Infowar (turns) 1075 | . 749 326 Structural 1075 | . 749 326 Robot Analysis Total . | . . . Derelict Logs Recovered . | . . . Drone Launches . | . . . Drone Recoveries . | . . . Exploration | -11 -10 -10 ------------- Run | Yrd Mat Sub Turns Passed 1440 | 84 1030 326 Spaces Moved 1052 | 70 721 261 Core 20 | 20 . . Treads . | . . . Legs 631 | 50 581 . Wheels 401 | . 140 261 Hover . | . . . Flight . | . . . Fastest Speed 50 | 50 80 80 Average Speed 106 | 100 112 93 Slowest Speed 120 | 120 120 95 Overloaded Moves . | . . . Propulsion Burnouts . | . . . Robots Hopped . | . . . Potential Cave-ins . | . . . Cave-ins Triggered . | . . . Exploration Rate (%) 39 | 3 94 21 Regions Visited 2 Branch Regions 1 Pre-discovered Areas . | . . . Known Exits Taken . | . . . Unknown Exits Taken 2 | 1 1 . Scrap Searched 3 | . . 3 Spaces Dug . | . . . Terrain Destroyed 12 | . 12 . Melee . | . . . Projectile . | . . . AOE 12 | . 12 . Terrain Rammed . | . . . Walls Destroyed . | . . . Machines Disabled . | . . . Actions | -11 -10 -10 --------- Run | Yrd Mat Sub Total 1223 | 81 838 304 Wait 16 | . 16 . Move 1050 | 69 720 261 Hop . | . . . Pick Up 25 | 6 12 7 Fast Attach 11 | 6 4 1 Attach 9 | . 4 5 Detach . | . . . Swap 10 | . 9 1 Drop 16 | . 14 2 Fire 86 | . 59 27 Melee . | . . . Ram . | . . . Kick . | . . . Crush . | . . . Escape Stasis . | . . . Rewire . | . . . Trap . | . . . Miscellaneous . | . . . Route ------- -11/Scrapyard -10/Materials (discovered 6 exits: [*Mat x3] / [*Min x2] / [*Sub]) -10/Subcaves History --------- Turn | Location | Event 38 | -11/Scrapyard | Discovered new exit (range 16) 85 | -11/Scrapyard | Entered Materials 256 | -10/Materials | Discovered new exit (range 11) 315 | -10/Materials | Build established: Mutant 459 | -10/Materials | Discovered new exit (range 7) 468 | -10/Materials | Discovered new exit (range 6) 554 | -10/Materials | Discovered new exit (range 13) 685 | -10/Materials | Derelicts attacked the area 795 | -10/Materials | Discovered new exit (range 13) 852 | -10/Materials | Discovered new exit (range 15) 1115 | -10/Materials | Entered Subcaves 1145 | -10/Subcaves | Shifting Twisted Machinery released Riot Gun 1151 | -10/Subcaves | Core integrity fell below 50% 1174 | -10/Subcaves | Shifting Twisted Machinery released Sub. Power Source 1358 | -10/Subcaves | Core integrity fell below 20% 1420 | -10/Subcaves | Lost 4 parts (2n2w) 1441 | -10/Subcaves | Destroyed by Piercing Trap Last Messages --------------- 01399_ Searching scrap... 01399_ Found Spk. Treads. 01399_ Found Shrapnel Trap. 01399_ Found 57 Matter. 01400_ Acquired 57 matter. 01401_ Acquired Spk. Treads. 01412_ Searching scrap... 01412_ Found Sub. Power Source. 01412_ Found 54 Matter. 01413_ Acquired 30 matter. 01425_ Triggered Piercing Trap. 01425_ Spikes shoot up from the floor. 01425_ Critical hit (Impale). 01429_ Searching scrap... 01429_ Found Sub. Shrapnel Launcher. 01429_ Found 34 Matter. 01431_ Acquired Sub. Shrapnel Launcher. 01441_ Triggered Piercing Trap. 01441_ Spikes shoot up from the floor. 01441_ Critical hit (Impale). Map ----- +----------------------------------------------------+ | ??????????????## ### | | ??????????????## ### | | ??????????????## ## | | ??????????????## ## | | ??????????????## ## | | ??????????????### ##### | | ??????????????### ## ##### | | ??????????????## ####### ## | | ??????????????## ####### # | | ??????????????## ###### | | ?????????????### #### | | ????######???### ## # | | ??############# ## | | ??####""####### ## | | ?### " "## "### # | | ?###" % ##& "## | | ?## " "##" ## | | ?## " "##%& # ##### | | ?## "#### ## ########## | | ?## "#### &#" #######??? | | ?## <###### ##??????? | | ?## <###### ##??????? | | ?## ###### #"" ## ##??????? | | ?##< ####"" ###" ### ?????? | | ?##< <### <*<## ### ??? | | ?###<@ #% ## ##? #### ?? | | ?####< <<<##""## ? #####? ? | | ??############## ? ###?????? | | ???############# ###?????? | | ??????????????## #??????? | | ??????????????### ?????????? | | ??????????????### ?????????? | | ????????????????? ????????? | | ????????????????? ##????????? | | ????????????????? ##????????? | | ????????????????? ##????????? | | ?????????????????????????????? | | ?????????????????????????????? | | ?????????????????????????????? | | ?????????????????????????????? | | ?????????????????????????????? | | ?????????????????????????????? | | ?????????????????????????????? | | ?????????????????????????????? | | ?????????????????????????????? | | ?????????????????????????????? | | ?????????????????????????????? | | ?????????????????????????????? | | ?????????????????????????????? | | ?????????????????????????????? | +----------------------------------------------------+ Best States ------------- Heat Dissipation 39 Energy Generation 14 Energy Capacity 280 Matter Stores 300 Matter Capacity 300 Sight Range 16 Terrain Scan Density 10 Armor Coverage 150 Evasion (%) 55 Item Schematics ----------------- None Robot Schematics ------------------ None Fabricated ------------ Nothing Repaired ---------- Nothing Alien Tech Used ----------------- None Achievements -------------- None Challenges ------------ None Game ------ Seed RefineryDeuteriumSpiker Manual? 0 Play Time 00:15:53 Cumulative 262.7 hours Start 2025.05.24 @ 20:47:48 End 2025.05.24 @ 21:04:37 Sessions 1 Manual Loads 0 Difficulty Rogue Special Mode None Game No. 398 Rogue 398 Adventurer 0 Explorer 0 Win Type - Total 1 Types 1/0/0/0/0/0/0/0/0/0 Lore% 63 Gallery% 62 Achievement% 43 Wizard Run 0 Options --------- Layout 1 ASCII 0 Keyboard 0 Movement Mouse Keybinds 0 Fullscreen 2 Font 24/Smallcaps Map View 50x35 Zoom Use 0% Tactical HUD 1 Map Filters NONE Filters NONE Steam 1 RUN: 5a6fdc4d-ac2c-4834-bc43-34e9fa3a5583